[Event "*** SCC Grand Prix: Titled Tuesday Blitz"]
[Site "Chess.com"]
[Date "2020.10.13"]
[Round "4"]
[White "Sueetin"]
[Black "guillembaches"]
[Result "1-0"]
[WhiteElo "2270"]
[BlackElo "2403"]
[TimeControl "180+1"]
[EndTime "10:40:20 PDT"]
[Termination "Sueetin won on time"]

1. d4 {[%clk 0:03:00.9]} 1... d5 {[%clk 0:02:59.7]} 2. c4 {[%clk 0:03:00.5]}
2... Nc6 {[%clk 0:03:00.1]} 3. cxd5 {[%clk 0:02:54.8]} 3... Qxd5 {[%clk
0:02:59.9]} 4. e3 {[%clk 0:02:55.2]} 4... e5 {[%clk 0:03:00.1]} 5. Nc3 {[%clk
0:02:54.9]} 5... Bb4 {[%clk 0:03:00.5]} 6. Bd2 {[%clk 0:02:54.9]} 6... Bxc3
{[%clk 0:03:00.2]} 7. bxc3 {[%clk 0:02:55.6]} 7... Qd6 {[%clk 0:02:58.1]} 8. Ne2
{[%clk 0:02:46.8]} 8... Nf6 {[%clk 0:02:55.9]} 9. Ng3 {[%clk 0:02:45.2]} 9... h5
{[%clk 0:02:52.6]} 10. Bd3 {[%clk 0:02:33.8]} 10... h4 {[%clk 0:02:49.8]} 11.
Ne4 {[%clk 0:02:30.4]} 11... Nxe4 {[%clk 0:02:47.9]} 12. Bxe4 {[%clk 0:02:31.3]}
12... h3 {[%clk 0:02:44.1]} 13. g3 {[%clk 0:02:28.4]} 13... f5 {[%clk
0:02:36.6]} 14. Bf3 {[%clk 0:02:19.7]} 14... e4 {[%clk 0:02:28.1]} 15. Bh5+
{[%clk 0:02:17.2]} 15... g6 {[%clk 0:02:23.4]} 16. Be2 {[%clk 0:02:17]} 16...
Be6 {[%clk 0:02:20]} 17. c4 {[%clk 0:02:15.1]} 17... Bf7 {[%clk 0:02:14.5]} 18.
Rb1 {[%clk 0:02:06.3]} 18... b6 {[%clk 0:02:09.8]} 19. c5 {[%clk 0:01:55.5]}
19... Qd5 {[%clk 0:01:51.4]} 20. Qa4 {[%clk 0:01:26.9]} 20... O-O {[%clk
0:01:43.1]} 21. Rc1 {[%clk 0:01:14.8]} 21... Ne7 {[%clk 0:01:28.5]} 22. Bc4
{[%clk 0:00:53]} 22... Qd8 {[%clk 0:01:28.3]} 23. Bf1 {[%clk 0:00:44.1]} 23...
Nd5 {[%clk 0:01:05.6]} 24. Bxh3 {[%clk 0:00:43.6]} 24... a6 {[%clk 0:00:55.2]}
25. Bg2 {[%clk 0:00:42.4]} 25... b5 {[%clk 0:00:53.9]} 26. Qc2 {[%clk
0:00:39.3]} 26... c6 {[%clk 0:00:53.1]} 27. h4 {[%clk 0:00:39]} 27... Ra7 {[%clk
0:00:50.5]} 28. h5 {[%clk 0:00:38.4]} 28... gxh5 {[%clk 0:00:48.4]} 29. Ke2
{[%clk 0:00:33.8]} 29... Qf6 {[%clk 0:00:37.9]} 30. Rh4 {[%clk 0:00:30.2]} 30...
Kg7 {[%clk 0:00:37.7]} 31. Rch1 {[%clk 0:00:29.8]} 31... Rh8 {[%clk 0:00:37.2]}
32. Ba5 {[%clk 0:00:29.6]} 32... Bg6 {[%clk 0:00:36.7]} 33. Kd1 {[%clk
0:00:29.3]} 33... b4 {[%clk 0:00:32.4]} 34. Qb3 {[%clk 0:00:25.8]} 34... Rb7
{[%clk 0:00:30.9]} 35. Bf1 {[%clk 0:00:25.4]} 35... Ra8 {[%clk 0:00:28.8]} 36.
Bc4 {[%clk 0:00:25.2]} 36... Bf7 {[%clk 0:00:28.4]} 37. Kc1 {[%clk 0:00:25.1]}
37... Ne7 {[%clk 0:00:25.3]} 38. Bxf7 {[%clk 0:00:24.1]} 38... Qxf7 {[%clk
0:00:26.1]} 39. Rxh5 {[%clk 0:00:24.2]} 39... Qxb3 {[%clk 0:00:22.1]} 40. axb3
{[%clk 0:00:25.1]} 40... Kf6 {[%clk 0:00:21.6]} 41. Rh7 {[%clk 0:00:24]} 41...
Rab8 {[%clk 0:00:18.6]} 42. R1h6+ {[%clk 0:00:23.7]} 42... Ng6 {[%clk
0:00:18.8]} 43. Rxb7 {[%clk 0:00:22.5]} 43... Rxb7 {[%clk 0:00:19.7]} 44. Bd8+
{[%clk 0:00:20.8]} 44... Kg7 {[%clk 0:00:18]} 45. Rh5 {[%clk 0:00:21.3]} 45...
Rf7 {[%clk 0:00:17.3]} 46. Bb6 {[%clk 0:00:21]} 46... Nf8 {[%clk 0:00:16.9]} 47.
Ba5 {[%clk 0:00:20.9]} 47... Rb7 {[%clk 0:00:16.3]} 48. Kb2 {[%clk 0:00:20.3]}
48... Kg6 {[%clk 0:00:15.8]} 49. Rh4 {[%clk 0:00:20.3]} 49... Nd7 {[%clk
0:00:15.9]} 50. Bd8 {[%clk 0:00:20.6]} 50... a5 {[%clk 0:00:14.5]} 51. g4 {[%clk
0:00:21.1]} 51... fxg4 {[%clk 0:00:13.9]} 52. Rxg4+ {[%clk 0:00:22]} 52... Kf5
{[%clk 0:00:14.3]} 53. Rf4+ {[%clk 0:00:22.6]} 53... Ke6 {[%clk 0:00:14.5]} 54.
Rxe4+ {[%clk 0:00:23.5]} 54... Kf7 {[%clk 0:00:14.9]} 55. Re7+ {[%clk
0:00:23.2]} 55... Kf8 {[%clk 0:00:14.5]} 56. Re4 {[%clk 0:00:24.1]} 56... Rb8
{[%clk 0:00:14]} 57. Rf4+ {[%clk 0:00:25]} 57... Ke8 {[%clk 0:00:13.9]} 58. Bc7
{[%clk 0:00:25.9]} 58... Rb7 {[%clk 0:00:13.5]} 59. Bd6 {[%clk 0:00:26.5]} 59...
a4 {[%clk 0:00:12.2]} 60. e4 {[%clk 0:00:26.4]} 60... a3+ {[%clk 0:00:11.7]} 61.
Ka2 {[%clk 0:00:27]} 61... Ra7 {[%clk 0:00:09.8]} 62. e5 {[%clk 0:00:27.3]}
62... Ra8 {[%clk 0:00:08.8]} 63. e6 {[%clk 0:00:27.6]} 1-0

[Event "*** SCC Grand Prix: Titled Tuesday Blitz"]
[Site "Chess.com"]
[Date "2020.10.13"]
[Round "4"]
[White "Ladislav1969"]
[Black "tan275"]
[Result "1/2-1/2"]
[WhiteElo "2367"]
[BlackElo "2237"]
[TimeControl "180+1"]
[EndTime "10:40:21 PDT"]
[Termination "Game drawn by repetition"]

1. e4 {[%clk 0:03:00.9]} 1... c6 {[%clk 0:02:58.9]} 2. d4 {[%clk 0:03:00.4]}
2... d5 {[%clk 0:02:58.9]} 3. e5 {[%clk 0:03:01.1]} 3... Bf5 {[%clk 0:02:58.5]}
4. Nd2 {[%clk 0:03:01.6]} 4... e6 {[%clk 0:02:56.3]} 5. Nb3 {[%clk 0:03:01.6]}
5... c5 {[%clk 0:02:56.3]} 6. dxc5 {[%clk 0:03:00.4]} 6... Bxc5 {[%clk
0:02:56.3]} 7. Nxc5 {[%clk 0:03:00.2]} 7... Qa5+ {[%clk 0:02:56.8]} 8. c3 {[%clk
0:03:00.1]} 8... Qxc5 {[%clk 0:02:57]} 9. Nf3 {[%clk 0:02:59.7]} 9... Qc7 {[%clk
0:02:54.6]} 10. Bb5+ {[%clk 0:02:50.8]} 10... Nc6 {[%clk 0:02:53.4]} 11. O-O
{[%clk 0:02:47.4]} 11... Ne7 {[%clk 0:02:48.4]} 12. Re1 {[%clk 0:02:31.8]} 12...
O-O {[%clk 0:02:43.8]} 13. h3 {[%clk 0:02:28.8]} 13... Rad8 {[%clk 0:02:28.3]}
14. Bf4 {[%clk 0:02:19.5]} 14... Qb6 {[%clk 0:01:57.6]} 15. a4 {[%clk 0:02:19]}
15... a6 {[%clk 0:01:53.6]} 16. Be3 {[%clk 0:02:19.1]} 16... Qc7 {[%clk
0:01:43.9]} 17. Bd3 {[%clk 0:02:16.5]} 17... Be4 {[%clk 0:01:36.9]} 18. Bd4
{[%clk 0:02:01]} 18... Bxd3 {[%clk 0:01:08.2]} 19. Qxd3 {[%clk 0:02:00.2]} 19...
Nf5 {[%clk 0:01:00.8]} 20. Rac1 {[%clk 0:01:41.2]} 20... Na5 {[%clk 0:00:52.8]}
21. g4 {[%clk 0:01:26.4]} 21... Ne7 {[%clk 0:00:38.7]} 22. b4 {[%clk 0:01:20.7]}
22... Nb3 {[%clk 0:00:33.3]} 23. Rc2 {[%clk 0:01:12.6]} 23... Rc8 {[%clk
0:00:28.5]} 24. a5 {[%clk 0:00:58.1]} 24... Nxd4 {[%clk 0:00:25.4]} 25. Nxd4
{[%clk 0:00:58.3]} 25... Ng6 {[%clk 0:00:24.1]} 26. Qe3 {[%clk 0:00:56]} 26...
Qc4 {[%clk 0:00:20.4]} 27. f4 {[%clk 0:00:55.4]} 27... Rfe8 {[%clk 0:00:16.6]}
28. Qg3 {[%clk 0:00:45.3]} 28... h6 {[%clk 0:00:16.2]} 29. h4 {[%clk 0:00:45.3]}
29... Ne7 {[%clk 0:00:14.5]} 30. h5 {[%clk 0:00:41.6]} 30... Nc6 {[%clk
0:00:14.4]} 31. Nxc6 {[%clk 0:00:27.7]} 31... Rxc6 {[%clk 0:00:11.2]} 32. g5
{[%clk 0:00:28.1]} 32... hxg5 {[%clk 0:00:09.7]} 33. Qxg5 {[%clk 0:00:28.3]}
33... Qd3 {[%clk 0:00:07.3]} 34. Rg2 {[%clk 0:00:28]} 34... Qh7 {[%clk
0:00:07.3]} 35. h6 {[%clk 0:00:27.3]} 35... g6 {[%clk 0:00:07.6]} 36. Re3 {[%clk
0:00:24.4]} 36... Rc4 {[%clk 0:00:05.7]} 37. Qf6 {[%clk 0:00:21.8]} 37... d4
{[%clk 0:00:05.5]} 38. cxd4 {[%clk 0:00:18.7]} 38... Rxd4 {[%clk 0:00:03.3]} 39.
Reg3 {[%clk 0:00:14.9]} 39... Rd1+ {[%clk 0:00:02.9]} 40. Kh2 {[%clk 0:00:14.6]}
40... Qxh6+ {[%clk 0:00:02.7]} 41. Rh3 {[%clk 0:00:14.8]} 41... Rh1+ {[%clk
0:00:02.5]} 42. Kxh1 {[%clk 0:00:14.8]} 42... Qxh3+ {[%clk 0:00:03.1]} 43. Kg1
{[%clk 0:00:14.9]} 43... Qe3+ {[%clk 0:00:03.4]} 44. Kh2 {[%clk 0:00:12.1]}
44... Qf3 {[%clk 0:00:02.6]} 45. Rg3 {[%clk 0:00:11.2]} 45... Qh5+ {[%clk
0:00:02.5]} 46. Rh3 {[%clk 0:00:10.5]} 46... Qe2+ {[%clk 0:00:03]} 47. Kg3
{[%clk 0:00:10.5]} 47... Qe3+ {[%clk 0:00:03.5]} 48. Kg2 {[%clk 0:00:10.5]}
48... Qe2+ {[%clk 0:00:03.8]} 49. Kg3 {[%clk 0:00:10.5]} 49... Qe3+ {[%clk
0:00:04.3]} 50. Kh2 {[%clk 0:00:07.1]} 50... Qf2+ {[%clk 0:00:04.3]} 51. Kh1
{[%clk 0:00:06.5]} 51... Qf1+ {[%clk 0:00:04.8]} 52. Kh2 {[%clk 0:00:06.6]}
52... Qf2+ {[%clk 0:00:04.8]} 53. Kh1 {[%clk 0:00:06.9]} 53... Qf1+ {[%clk
0:00:05.4]} 54. Kh2 {[%clk 0:00:07.3]} 54... Qf2+ {[%clk 0:00:05.9]} 1/2-1/2

[Event "*** SCC Grand Prix: Titled Tuesday Blitz"]
[Site "Chess.com"]
[Date "2020.10.13"]
[Round "4"]
[White "Margarita2907"]
[Black "Sergienko_Sergey"]
[Result "0-1"]
[WhiteElo "2179"]
[BlackElo "2401"]
[TimeControl "180+1"]
[EndTime "10:40:24 PDT"]
[Termination "Sergienko_Sergey won on time"]

1. e4 {[%clk 0:03:00.9]} 1... c5 {[%clk 0:02:59.3]} 2. Nf3 {[%clk 0:03:00.2]}
2... a6 {[%clk 0:02:58.6]} 3. c4 {[%clk 0:02:55.7]} 3... e6 {[%clk 0:02:58.1]}
4. d4 {[%clk 0:02:53.9]} 4... cxd4 {[%clk 0:02:57.4]} 5. Nxd4 {[%clk 0:02:53.7]}
5... Nf6 {[%clk 0:02:57.3]} 6. Nc3 {[%clk 0:02:53.1]} 6... d6 {[%clk 0:02:56.3]}
7. Be2 {[%clk 0:02:50]} 7... Be7 {[%clk 0:02:55.9]} 8. O-O {[%clk 0:02:49.8]}
8... O-O {[%clk 0:02:55.8]} 9. Kh1 {[%clk 0:02:46.6]} 9... Qc7 {[%clk
0:02:55.4]} 10. f4 {[%clk 0:02:43.3]} 10... b6 {[%clk 0:02:54]} 11. Bd3 {[%clk
0:02:39.8]} 11... Nbd7 {[%clk 0:02:48.7]} 12. Qe2 {[%clk 0:02:34.3]} 12... Bb7
{[%clk 0:02:46.4]} 13. Bd2 {[%clk 0:02:22.3]} 13... Rfe8 {[%clk 0:02:41.5]} 14.
b3 {[%clk 0:02:19.2]} 14... Rac8 {[%clk 0:02:40.4]} 15. Rae1 {[%clk 0:01:59.2]}
15... e5 {[%clk 0:02:18.6]} 16. Nf5 {[%clk 0:01:54.7]} 16... Bf8 {[%clk
0:02:15.2]} 17. Bb1 {[%clk 0:01:41.7]} 17... g6 {[%clk 0:01:42.7]} 18. Ng3
{[%clk 0:01:36]} 18... Bg7 {[%clk 0:01:39]} 19. f5 {[%clk 0:01:34.4]} 19... b5
{[%clk 0:01:13.5]} 20. cxb5 {[%clk 0:01:29.4]} 20... axb5 {[%clk 0:01:13.5]} 21.
Qxb5 {[%clk 0:01:07.5]} 21... Nc5 {[%clk 0:01:05.3]} 22. Qb4 {[%clk 0:00:28.1]}
22... Ba6 {[%clk 0:00:59.5]} 23. Rg1 {[%clk 0:00:16]} 23... Rb8 {[%clk 0:00:43]}
24. Qa3 {[%clk 0:00:15.3]} 24... Bd3 {[%clk 0:00:31.4]} 25. fxg6 {[%clk
0:00:06.8]} 25... hxg6 {[%clk 0:00:29.9]} 26. Nd5 {[%clk 0:00:06]} 26... Nxd5
{[%clk 0:00:26.4]} 27. exd5 {[%clk 0:00:06.9]} 27... Bxb1 {[%clk 0:00:21.5]} 28.
Rxb1 {[%clk 0:00:07.8]} 28... Nd3 {[%clk 0:00:20.4]} 29. Rgf1 {[%clk 0:00:07.7]}
29... Ra8 {[%clk 0:00:14]} 30. Rbc1 {[%clk 0:00:04.9]} 30... Qb7 {[%clk
0:00:09]} 31. Rc3 {[%clk 0:00:02.5]} 31... Rxa3 {[%clk 0:00:07.6]} 32. Rxd3
{[%clk 0:00:03.2]} 32... Rxa2 {[%clk 0:00:07.9]} 33. Rdf3 {[%clk 0:00:03.2]}
33... f5 {[%clk 0:00:07.1]} 34. h3 {[%clk 0:00:02.2]} 34... e4 {[%clk 0:00:07]}
35. R3f2 {[%clk 0:00:02]} 35... Rb2 {[%clk 0:00:06.6]} 36. Re2 {[%clk
0:00:01.5]} 36... Rxb3 {[%clk 0:00:06.4]} 37. Be3 {[%clk 0:00:01.6]} 37... Rb1
{[%clk 0:00:06]} 38. Rfe1 {[%clk 0:00:02.1]} 38... Rxe1+ {[%clk 0:00:04.2]} 39.
Rxe1 {[%clk 0:00:03]} 39... Qxd5 {[%clk 0:00:04.2]} 40. Bf2 {[%clk 0:00:03.5]}
40... Qe6 {[%clk 0:00:05.1]} 41. Ne2 {[%clk 0:00:03.2]} 41... d5 {[%clk
0:00:05.7]} 42. Nf4 {[%clk 0:00:03.7]} 42... d4 {[%clk 0:00:05.7]} 43. Nxe6
{[%clk 0:00:03.1]} 43... Rxe6 {[%clk 0:00:06.2]} 44. Rd1 {[%clk 0:00:02.7]}
44... d3 {[%clk 0:00:06.8]} 45. Be3 {[%clk 0:00:02.4]} 45... Rc6 {[%clk
0:00:07.2]} 46. Kg1 {[%clk 0:00:02.6]} 46... Rc2 {[%clk 0:00:07.6]} 47. Kf1
{[%clk 0:00:02.8]} 47... Be5 {[%clk 0:00:07.4]} 48. g4 {[%clk 0:00:03.3]} 48...
Kf7 {[%clk 0:00:07.5]} 49. gxf5 {[%clk 0:00:03]} 49... gxf5 {[%clk 0:00:07.4]}
50. h4 {[%clk 0:00:03.4]} 50... f4 {[%clk 0:00:07.3]} 51. Bb6 {[%clk 0:00:02.5]}
51... Ke6 {[%clk 0:00:07.1]} 52. h5 {[%clk 0:00:01.4]} 52... Kf5 {[%clk
0:00:06.9]} 0-1

[Event "*** SCC Grand Prix: Titled Tuesday Blitz"]
[Site "Chess.com"]
[Date "2020.10.13"]
[Round "4"]
[White "Unknown_IM"]
[Black "TST2014"]
[Result "1/2-1/2"]
[WhiteElo "2352"]
[BlackElo "2531"]
[TimeControl "180+1"]
[EndTime "10:40:25 PDT"]
[Termination "Game drawn - insufficient material"]

1. e4 {[%clk 0:03:00.9]} 1... c5 {[%clk 0:02:56.3]} 2. Nf3 {[%clk 0:02:59.8]}
2... Nc6 {[%clk 0:02:56.1]} 3. Bb5 {[%clk 0:02:58.7]} 3... g6 {[%clk 0:02:55.7]}
4. Bxc6 {[%clk 0:02:57.3]} 4... dxc6 {[%clk 0:02:56.3]} 5. d3 {[%clk 0:02:57]}
5... Bg7 {[%clk 0:02:55.9]} 6. Nc3 {[%clk 0:02:56]} 6... Nf6 {[%clk 0:02:53.4]}
7. h3 {[%clk 0:02:55.2]} 7... Nd7 {[%clk 0:02:53]} 8. Be3 {[%clk 0:02:54.4]}
8... e5 {[%clk 0:02:52.8]} 9. O-O {[%clk 0:02:51.8]} 9... b6 {[%clk 0:02:50.1]}
10. Qc1 {[%clk 0:02:51.7]} 10... h6 {[%clk 0:02:49.4]} 11. a3 {[%clk 0:02:49.2]}
11... a5 {[%clk 0:02:48.1]} 12. Na4 {[%clk 0:02:48.8]} 12... Rb8 {[%clk
0:02:39.8]} 13. Rb1 {[%clk 0:02:32.3]} 13... Qe7 {[%clk 0:02:37]} 14. b3 {[%clk
0:02:04.3]} 14... b5 {[%clk 0:02:25]} 15. Nb2 {[%clk 0:02:02.4]} 15... Nf8
{[%clk 0:02:22.9]} 16. a4 {[%clk 0:02:01.5]} 16... Ne6 {[%clk 0:02:21.9]} 17.
Qd2 {[%clk 0:01:57.4]} 17... Ra8 {[%clk 0:02:14]} 18. c3 {[%clk 0:01:53.9]}
18... Qd6 {[%clk 0:02:08.1]} 19. Rfd1 {[%clk 0:01:50.8]} 19... Nf4 {[%clk
0:02:06.5]} 20. Bxf4 {[%clk 0:01:50.3]} 20... exf4 {[%clk 0:02:06.6]} 21. d4
{[%clk 0:01:49.7]} 21... cxd4 {[%clk 0:02:01.5]} 22. cxd4 {[%clk 0:01:50.6]}
22... Be6 {[%clk 0:02:00.1]} 23. d5 {[%clk 0:01:48.1]} 23... cxd5 {[%clk
0:01:59.6]} 24. exd5 {[%clk 0:01:48.1]} 24... Bf5 {[%clk 0:01:58.5]} 25. axb5
{[%clk 0:01:26.6]} 25... Bxb1 {[%clk 0:01:55]} 26. Nc4 {[%clk 0:01:25.7]} 26...
Qb4 {[%clk 0:01:48.4]} 27. Rxb1 {[%clk 0:00:52.9]} 27... O-O {[%clk 0:01:36.9]}
28. Qxf4 {[%clk 0:00:49.4]} 28... Qxb5 {[%clk 0:01:36.5]} 29. d6 {[%clk
0:00:47.3]} 29... a4 {[%clk 0:01:36.2]} 30. Na3 {[%clk 0:00:43.1]} 30... Qd3
{[%clk 0:01:29.6]} 31. Qc4 {[%clk 0:00:36.4]} 31... Qxd6 {[%clk 0:01:21.1]} 32.
Nb5 {[%clk 0:00:35.4]} 32... Qe6 {[%clk 0:01:12.6]} 33. Qxe6 {[%clk 0:00:31.8]}
33... fxe6 {[%clk 0:01:13.1]} 34. bxa4 {[%clk 0:00:30.9]} 34... Rxa4 {[%clk
0:01:13.1]} 35. Nc7 {[%clk 0:00:23]} 35... Re4 {[%clk 0:01:04]} 36. Rb7 {[%clk
0:00:13.7]} 36... Rf7 {[%clk 0:01:02.5]} 37. Rb8+ {[%clk 0:00:12.4]} 37... Kh7
{[%clk 0:01:01.9]} 38. Ne8 {[%clk 0:00:13.3]} 38... Bd4 {[%clk 0:00:55.4]} 39.
Nd6 {[%clk 0:00:12.1]} 39... Ba7 {[%clk 0:00:48.5]} 40. Nxf7 {[%clk 0:00:01.7]}
40... Bxb8 {[%clk 0:00:46.3]} 41. N7g5+ {[%clk 0:00:02.6]} 41... hxg5 {[%clk
0:00:46]} 42. Nxg5+ {[%clk 0:00:03.5]} 42... Kg7 {[%clk 0:00:46.5]} 43. Nxe4
{[%clk 0:00:04.4]} 43... Bf4 {[%clk 0:00:45.6]} 44. g3 {[%clk 0:00:04.7]} 44...
Be5 {[%clk 0:00:44.6]} 45. Kg2 {[%clk 0:00:05]} 45... Bd4 {[%clk 0:00:43]} 46.
Kf3 {[%clk 0:00:05]} 46... Bb2 {[%clk 0:00:42.4]} 47. Kg4 {[%clk 0:00:05.3]}
47... Bc1 {[%clk 0:00:42.3]} 48. h4 {[%clk 0:00:05.5]} 48... Kf7 {[%clk
0:00:42.4]} 49. f4 {[%clk 0:00:05.8]} 49... Kg7 {[%clk 0:00:41.9]} 50. Kg5
{[%clk 0:00:06.2]} 50... Ba3 {[%clk 0:00:39]} 51. Nf2 {[%clk 0:00:05.3]} 51...
Be7+ {[%clk 0:00:38.7]} 52. Kg4 {[%clk 0:00:05.5]} 52... Bd8 {[%clk 0:00:36.7]}
53. Nd3 {[%clk 0:00:05.9]} 53... Be7 {[%clk 0:00:35.5]} 54. Ne5 {[%clk
0:00:06.4]} 54... Bd8 {[%clk 0:00:34.7]} 55. Nf3 {[%clk 0:00:05]} 55... Bf6
{[%clk 0:00:34.3]} 56. Ng5 {[%clk 0:00:05.4]} 56... e5 {[%clk 0:00:32.8]} 57.
Ne4 {[%clk 0:00:04]} 57... exf4 {[%clk 0:00:28.3]} 58. Nxf6 {[%clk 0:00:03.5]}
58... fxg3 {[%clk 0:00:27.6]} 59. Kxg3 {[%clk 0:00:01.8]} 59... Kxf6 {[%clk
0:00:27.5]} 60. Kg4 {[%clk 0:00:02.7]} 60... Kg7 {[%clk 0:00:27.1]} 61. h5
{[%clk 0:00:03.6]} 61... Kh6 {[%clk 0:00:26.7]} 62. hxg6 {[%clk 0:00:03]} 62...
Kxg6 {[%clk 0:00:27.1]} 1/2-1/2

[Event "*** SCC Grand Prix: Titled Tuesday Blitz"]
[Site "Chess.com"]
[Date "2020.10.13"]
[Round "4"]
[White "Manukyan_Artak"]
[Black "zverr1"]
[Result "1/2-1/2"]
[WhiteElo "2316"]
[BlackElo "2451"]
[TimeControl "180+1"]
[EndTime "10:40:26 PDT"]
[Termination "Game drawn - insufficient material"]

1. e4 {[%clk 0:03:00.9]} 1... e6 {[%clk 0:02:55.1]} 2. d4 {[%clk 0:03:00.1]}
2... d5 {[%clk 0:02:54.4]} 3. e5 {[%clk 0:03:01]} 3... c5 {[%clk 0:02:54.4]} 4.
c3 {[%clk 0:03:01.9]} 4... Qb6 {[%clk 0:02:55]} 5. Nf3 {[%clk 0:03:02.8]} 5...
Nc6 {[%clk 0:02:55.6]} 6. a3 {[%clk 0:03:03.2]} 6... Nh6 {[%clk 0:02:56.2]} 7.
b4 {[%clk 0:03:03.1]} 7... cxd4 {[%clk 0:02:56.8]} 8. cxd4 {[%clk 0:03:04]} 8...
Nf5 {[%clk 0:02:56.9]} 9. Bb2 {[%clk 0:03:04.5]} 9... Bd7 {[%clk 0:02:57.4]} 10.
g4 {[%clk 0:03:04.2]} 10... Nfe7 {[%clk 0:02:54.9]} 11. Nc3 {[%clk 0:03:04.1]}
11... Na5 {[%clk 0:02:54.8]} 12. Na4 {[%clk 0:03:03.9]} 12... Bxa4 {[%clk
0:02:43.8]} 13. Qxa4+ {[%clk 0:03:02.6]} 13... Nac6 {[%clk 0:02:44.7]} 14. Rc1
{[%clk 0:03:01.3]} 14... Ng6 {[%clk 0:02:39.9]} 15. h4 {[%clk 0:02:49.6]} 15...
h5 {[%clk 0:02:27.5]} 16. g5 {[%clk 0:02:47.2]} 16... Be7 {[%clk 0:02:25.1]} 17.
Qb5 {[%clk 0:02:32.4]} 17... O-O {[%clk 0:02:18]} 18. Qxb6 {[%clk 0:02:31.8]}
18... axb6 {[%clk 0:02:18.9]} 19. Bb5 {[%clk 0:02:31.6]} 19... Nf4 {[%clk
0:02:10.8]} 20. Kd2 {[%clk 0:02:24.8]} 20... Rfc8 {[%clk 0:01:55.2]} 21. Rc3
{[%clk 0:02:07.6]} 21... Na7 {[%clk 0:01:47.6]} 22. Bd3 {[%clk 0:01:51.9]} 22...
Nxd3 {[%clk 0:01:44.7]} 23. Rxc8+ {[%clk 0:01:49.9]} 23... Rxc8 {[%clk
0:01:45.6]} 24. Kxd3 {[%clk 0:01:50.4]} 24... b5 {[%clk 0:01:36.9]} 25. Rc1
{[%clk 0:01:49.9]} 25... Rc4 {[%clk 0:01:36]} 26. Nd2 {[%clk 0:01:50]} 26...
Rxc1 {[%clk 0:01:06]} 27. Bxc1 {[%clk 0:01:50.9]} 27... Nc8 {[%clk 0:01:06.8]}
28. Nb3 {[%clk 0:01:46.7]} 28... Nb6 {[%clk 0:01:01.2]} 29. Na5 {[%clk
0:01:46.6]} 29... Nc4 {[%clk 0:01:00.7]} 30. Nxb7 {[%clk 0:01:44]} 30... f6
{[%clk 0:00:50.9]} 31. exf6 {[%clk 0:01:06.9]} 31... gxf6 {[%clk 0:00:51.8]} 32.
f4 {[%clk 0:01:01.7]} 32... Nd6 {[%clk 0:00:29.8]} 33. Nc5 {[%clk 0:00:37.7]}
33... Kf7 {[%clk 0:00:25.5]} 34. Be3 {[%clk 0:00:30.4]} 34... Nc4 {[%clk
0:00:23.4]} 35. Bc1 {[%clk 0:00:29.6]} 35... Nd6 {[%clk 0:00:23.4]} 36. Be3
{[%clk 0:00:26.7]} 36... Nc4 {[%clk 0:00:23.5]} 37. a4 {[%clk 0:00:24.9]} 37...
Nb2+ {[%clk 0:00:16.7]} 38. Kc2 {[%clk 0:00:24.1]} 38... Nxa4 {[%clk 0:00:15.8]}
39. Nxa4 {[%clk 0:00:23]} 39... bxa4 {[%clk 0:00:16.7]} 40. b5 {[%clk
0:00:23.1]} 40... Bd8 {[%clk 0:00:14.4]} 41. Kb2 {[%clk 0:00:21.4]} 41... Bb6
{[%clk 0:00:08]} 42. Ka3 {[%clk 0:00:21.4]} 42... e5 {[%clk 0:00:08.5]} 43. fxe5
{[%clk 0:00:19]} 43... fxe5 {[%clk 0:00:08.5]} 44. Kxa4 {[%clk 0:00:19.2]} 44...
exd4 {[%clk 0:00:08.5]} 45. Bd2 {[%clk 0:00:19.2]} 45... Ke6 {[%clk 0:00:08.2]}
46. Kb3 {[%clk 0:00:17]} 46... Kf5 {[%clk 0:00:08.7]} 47. Kc2 {[%clk 0:00:16.8]}
47... Ke6 {[%clk 0:00:02.5]} 48. Kd3 {[%clk 0:00:16.1]} 48... Kf5 {[%clk
0:00:03]} 49. Bc1 {[%clk 0:00:15.7]} 49... Kg6 {[%clk 0:00:03.5]} 50. Bb2 {[%clk
0:00:15.8]} 50... Bc7 {[%clk 0:00:02.4]} 51. Bxd4 {[%clk 0:00:13.5]} 51... Bg3
{[%clk 0:00:03.3]} 52. b6 {[%clk 0:00:12.7]} 52... Bxh4 {[%clk 0:00:03.7]} 53.
Be5 {[%clk 0:00:11.7]} 53... Bf2 {[%clk 0:00:04]} 54. b7 {[%clk 0:00:11.4]}
54... Ba7 {[%clk 0:00:04.9]} 55. b8=Q {[%clk 0:00:08.1]} 55... Bxb8 {[%clk
0:00:04.9]} 56. Bxb8 {[%clk 0:00:09]} 56... Kxg5 {[%clk 0:00:05.6]} 57. Kd4
{[%clk 0:00:09]} 57... Kg4 {[%clk 0:00:06]} 58. Kxd5 {[%clk 0:00:09.2]} 58... h4
{[%clk 0:00:06.4]} 59. Ke4 {[%clk 0:00:09.1]} 59... h3 {[%clk 0:00:07.3]} 60.
Ke3 {[%clk 0:00:09.3]} 60... h2 {[%clk 0:00:08.2]} 61. Bxh2 {[%clk 0:00:08.9]}
1/2-1/2